Cogmind - Beta 16 @@@ ROGUE MODE // 2025.12.21 @ 22:59:22 Player: useeikick Result: Destroyed by JR-RNB(j) with Overtuned Pulse Rifle Performance ------------- Evolutions (0) 0 Regions Visited (5) 1000 Robots Destroyed (20) 100 Value Destroyed (441) 441 Prototype IDs (10) 200 Alien Tech Used (0) 0 Bonus (800) 800 TOTAL SCORE: 2541 Bonus ------- Registered with UFD 300 Met Optimus in HQ 500 Cogmind --------- Core Integrity 0/250 Matter 300/300 Energy 150/160 System Corruption 0% Temperature Cool (81) Movement Walking (180) Ox1 Location -8/Scraptown Parts ------- > --- POWER (1) -------- Light Nuclear Core > --- PROPULSION (2) --- VSS Leg > --- UTILITY (2) ------ Scrap Suit > --- WEAPON (2) ------- Overtuned Coil Gun Companion Sword > --- INVENTORY (5) ---- Xenon Bombardment Thruster Xenon Bombardment Thruster Nuclear Pulse Thruster Triangulator Relay Coupler [Proto] (4) Peak State ------------ > --- POWER ------------ Light Nuclear Core > --- PROPULSION ------- VSS Leg VSS Leg > --- UTILITY ---------- Scrap Suit > --- WEAPON ----------- Overtuned Coil Gun Companion Sword > --- INVENTORY -------- Xenon Bombardment Thruster Xenon Bombardment Thruster Nuclear Pulse Thruster Triangulator Relay Coupler [Proto] [Rating: 31] Favorites ----------- Power Nuclear Core Engine Ion Engine Power Core Nuclear Core Propulsion VSS Leg Treads Armored Treads Leg VSS Leg Wheel Compact Wheel Flight Unit Xenon Bombardment Thruster Utility ECM Suite Device ECM Suite Storage Small Storage Unit Protection Makeshift Kinetic Plating Weapon Light Assault Rifle Ballistic Gun Light Assault Rifle Ballistic Cannon Assault Cannon Launcher Grenade Launcher Slashing Weapon Companion Sword Build | -11 -10 -10 -10 -8 -8 ------- Run | Yrd Mat Min Sub Rec Scr Slots Evolved . | . . . . . . Power . | . . . . . . Propulsion . | . . . . . . Utility . | . . . . . . Weapon . | . . . . . . Parts Attached 27 | 6 1 3 6 6 5 Power 4 | 1 . 1 . 1 1 Engine 2 | 1 . 1 . . . Core 2 | . . . . 1 1 Reactor . | . . . . . . Propulsion 11 | 2 . 2 2 3 2 Treads 1 | . . . . 1 . Leg 4 | . . 2 . 2 . Wheel 3 | 2 . . 1 . . Hover . | . . . . . . Flight 3 | . . . 1 . 2 Utility 4 | 1 1 . 1 . 1 Device 2 | . 1 . . . 1 Storage 1 | 1 . . . . . Processor . | . . . . . . Hackware . | . . . . . . Protection 1 | . . . 1 . . Artifact . | . . . . . . Weapon 8 | 2 . . 3 2 1 Energy Gun . | . . . . . . Energy Cannon . | . . . . . . Ballistic Gun 4 | 2 . . 2 . . Ballistic Cannon 2 | . . . . 2 . Launcher 1 | . . . 1 . . Special Weapon . | . . . . . . Impact Weapon . | . . . . . . Slashing Weapon 1 | . . . . . 1 Piercing Weapon . | . . . . . . Special Melee Weapon . | . . . . . . Unidentified Prototypes 1 | . . . . . 1 Parts Lost 8 | . . 1 6 . 1 Power 2 | . . . 2 . . Propulsion 5 | . . 1 3 . 1 Utility 1 | . . . 1 . . Weapon . | . . . . . . Highest Loss Streak 3 | . . 1 3 . 1 To Critical Strikes . | . . . . . . Average Backups 3 | 1 3 3 3 3 4 Power . | . 1 1 . . . Propulsion 1 | . 2 1 1 . 2 Utility . | . . . . . 1 Weapon . | . . 1 1 1 . Tool/Special . | . . . . . . Unused Backups 5 | . . . . . 5 Power . | . . . . . . Propulsion 1 | . . . . . 1 Utility 4 | . . . . . 4 Weapon . | . . . . . . Tool/Special . | . . . . . . Average Slot Usage (%) 88 | . 96 98 94 80 88 Engine 3 | . 14 14 11 . . Core 9 | . . . . 13 13 Treads 2 | . . . . 11 . Leg 16 | . . 15 16 3 25 Wheel 3 | . 28 11 9 . . Flight 1 | . . . . . 2 Device 13 | . 10 14 14 14 13 Storage 7 | . 14 14 4 13 3 Protection 1 | . . . 8 . . Ballistic Gun 15 | . 28 28 22 8 14 Ballistic Cannon 8 | . . . . 8 12 Launcher 2 | . . . 5 6 . Peak Build Rating 31 | 6 7 7 10 15 31 Average Rating 13 | 5 6 6 8 10 19 On Entrance 6 | . 6 7 7 4 15 Avg Prop Armor Cover (%) 10 | 17 . . 5 5 2 Naked Turns . | . . . . . . Heaviest Build 21 | 13 15 15 18 21 20 Greatest Support 26 | 26 26 26 26 24 24 Greatest Overweight (x) 6 | 4 . . 1 6 2 Average Overweight (x) . | 1 . . . . . Largest Inventory Capacity 8 | 8 8 8 8 8 8 Average Capacity 6 | 7 8 8 5 7 5 Most Carried 6 | 3 4 4 6 5 6 Average Carried 3 | 1 3 3 3 3 4 Final Capacity 8 | 8 8 8 5 8 5 Final Carried 5 | 3 4 4 2 3 5 Scrap Suit Usage (%) 16 | . . . . . 36 Class Distribution -------------------- 83% | Mutant 16% | Scrapper Dominant Class ---------------- Mutant | -10/Materials Mutant | -10/Mines Mutant | -10/Subcaves Mutant | -8/Recycling Mutant | -8/Scraptown Resources | -11 -10 -10 -10 -8 -8 ----------- Run | Yrd Mat Min Sub Rec Scr Matter Collected 816 | 240 50 90 108 258 70 Remotely . | . . . . . . Salvage Created 590 | . 62 149 123 256 . Parts 24 | . 2 4 12 6 . Haulers Intercepted . | . . . . . . Recyclers Shooed 1 | . . . . 1 . Parts Field Recycled . | . . . . . . Retrieved Matter . | . . . . . . Parts Self-Destructed 12 | . . . 12 . . Prevented . | . . . . . . Parts Restored . | . . . . . . Kills | -11 -10 -10 -10 -8 -8 ------- Run | Yrd Mat Min Sub Rec Scr Combat Hostiles Destroyed 16 | . 2 5 7 2 . Guns 11 | . 2 5 4 . . Cannons 2 | . . . . 2 . AOE 3 | . . . 3 . . Classes Destroyed 6 | . 1 1 2 2 . Recycler 2 | . . . . 2 . Turret 2 | . . . 2 . . Swarmer 9 | . . 3 6 . . Grunt 4 | . 2 2 . . . Sentry 2 | . . . . 2 . Subdweller 1 | . . . 1 . . Best Kill Streak 3 | . 2 2 3 3 . Combat Bots Only 3 | . 2 2 3 1 . Max Kills in Single Turn 2 | . 1 1 2 1 . Gunslinging . | . . . . . . Exploded 2 | . . . 2 . . Melee . | . . . . . . Uniques/NPCs Destroyed . | . . . . . . Combat | -11 -10 -10 -10 -8 -8 -------- Run | Yrd Mat Min Sub Rec Scr Hostile Shots Fired 154 | . 11 46 72 6 19 Missed 44 | . 3 15 22 1 3 Hits 110 | . 8 31 50 5 16 Projectile 110 | . 8 31 50 5 16 Critical Strikes 1 | . . . . . 1 Damage Taken 1341 | . 88 305 584 80 284 Core 257 | . 10 76 61 31 79 Absorbed by Shields . | . . . . . . Ignored by Resistances 7 | . . . 7 . . Core Remaining (%) 100 | 100 . . . . . Volleys Fired 60 | . 5 23 25 7 . Largest 2 | . 2 2 2 2 . Hottest 57 | . 40 40 50 57 . Shots Fired 120 | . 10 46 50 14 . Gun 104 | . 10 46 41 7 . Cannon 7 | . . . . 7 . Launcher 9 | . . . 9 . . Special . | . . . . . . Kinetic 111 | . 10 46 41 14 . Thermal . | . . . . . . Explosive 9 | . . . 9 . . Electromagnetic . | . . . . . . Robot Hit Streak 9 | . 9 9 7 8 . Robot Miss Streak 3 | . . 3 2 3 . Penetration Max . | . . . . . . Secondary Targets . | . . . . . . Shots Hit Robots 81 | . 9 29 32 11 . Core Hits 42 | . 4 10 16 12 . Critical Kills 1 | . 1 . . . . Critical Parts Destroyed 1 | . 1 . . . . Critical Strikes 2 | . 2 . . . . Destroy 2 | . 2 . . . . Melee Attacks 2 | . . . . . 2 Impact . | . . . . . . Slashing 2 | . . . . . 2 Piercing . | . . . . . . Sneak Attacks . | . . . . . . Combat Hostiles . | . . . . . . Follow-up Attacks . | . . . . . . Damage Inflicted 1110 | . 106 297 508 199 . Guns 582 | . 101 293 162 26 . Cannons 173 | . . . . 173 . Explosions 346 | . . . 346 . . Melee . | . . . . . . Ramming 9 | . 5 4 . . . Kinetic 755 | . 101 293 162 199 . Thermal . | . . . . . . Explosive 346 | . . . 346 . . Electromagnetic . | . . . . . . Impact . | . . . . . . Slashing . | . . . . . . Piercing . | . . . . . . Highest Corruption . | . . . . . . Average Corruption . | . . . . . . Corruption Purged . | . . . . . . Corruption Blocked . | . . . . . . Overload Shots . | . . . . . . Overflow Damage . | . . . . . . Projectiles . | . . . . . . Explosions . | . . . . . . Melee . | . . . . . . Knockbacks 4 | . . . . 4 . Impact . | . . . . . . Kinetic 4 | . . . . 4 . Secondary . | . . . . . . Self-Inflicted Damage 4 | . 2 2 . . . Shots . | . . . . . . Rammed 2 | . 1 1 . . . Targets Rammed 2 | . 1 1 . . . Kicked . | . . . . . . Crushed . | . . . . . . Highest Temperature 69 | . 12 15 20 31 69 Average Temperature 15 | . 8 9 13 14 42 Received Heat Transfer 547 | . 48 72 252 18 157 Siege Activations . | . . . . . . Martial Activations . | . . . . . . Shielding Activations . | . . . . . . Robots Disrupted . | . . . . . . Combat Hostiles . | . . . . . . Robots Corrupted . | . . . . . . Combat Hostiles . | . . . . . . Parts Fried . | . . . . . . Impact Corruptions . | . . . . . . Robots Melted . | . . . . . . Combat Hostiles . | . . . . . . Parts Melted . | . . . . . . Heat Transferred . | . . . . . . Parts Sabotaged . | . . . . . . Parts Stolen . | . . . . . . Parts Stripped . | . . . . . . Power Chain Reactions . | . . . . . . Alert | -11 -10 -10 -10 -8 -8 ------- Run | Yrd Mat Min Sub Rec Scr Maximum Alert Level . | . . . . . . Low Security (%) 100 | 100 100 100 . 100 . Level 1 . | . . . . . . Level 2 . | . . . . . . Level 3 . | . . . . . . Level 4 . | . . . . . . Level 5 . | . . . . . . High Security . | . . . . . . Max Security . | . . . . . . Peak Influence 80 | . 80 57 . 26 . Initial 27 | . . 27 . 26 . Average 8 | . 30 17 . 2 . Influence Increases 481 | . 120 120 170 71 . Destroy 0b10 Robot/C 340 | . 40 100 160 40 . Destroy 0b10 Robot/NC 10 | . . . . 10 . Destroy Leader 40 | . 10 20 10 . . Successful Hack 31 | . 10 . . 21 . Select Force Hacks 60 | . 60 . . . . Influence Decreases 481 | . 50 190 114 127 . Entered New Map 73 | . . 43 . 30 . Time Decay 358 | . 50 137 74 97 . Lost Part 50 | . . 10 40 . . Squads Dispatched 3 | . 3 . . . . Investigation 2 | . 2 . . . . Extermination . | . . . . . . Reinforcement 1 | . 1 . . . . Assault . | . . . . . . Garrison . | . . . . . . Intercept . | . . . . . . Searches Triggered . | . . . . . . Construction Impeded . | . . . . . . Haulers Reinforced . | . . . . . . Active Scanning Responses . | . . . . . . Cargo Convoy Interrupts . | . . . . . . Stealth | -11 -10 -10 -10 -8 -8 --------- Run | Yrd Mat Min Sub Rec Scr Distress Signals . | . . . . . . Communications Jammed . | . . . . . . Distress Signals . | . . . . . . Times Spotted 57 | . 10 9 28 2 8 Peak Tracking Total 6 | . 4 3 3 1 6 Tactical Retreats 11 | . 4 3 4 . . ECM-based Alert Blocks 41 | . 6 4 31 . . Traps | -11 -10 -10 -10 -8 -8 ------- Run | Yrd Mat Min Sub Rec Scr Traps Triggered . | . . . . . . Indirectly . | . . . . . . Trap Hack Attempts . | . . . . . . Triggered . | . . . . . . Disarmed . | . . . . . . Reprogrammed . | . . . . . . Reused . | . . . . . . Traps Extracted . | . . . . . . Installed . | . . . . . . Triggered . | . . . . . . Machines | -11 -10 -10 -10 -8 -8 ---------- Run | Yrd Mat Min Sub Rec Scr Machines Disabled 4 | . . . 4 . . Max in Single Turn 2 | . . . 2 . . Machines Repaired . | . . . . . . Machines Dismantled . | . . . . . . Machines Sabotaged . | . . . . . . Overloaded Fab Kills . | . . . . . . Hacking | -11 -10 -10 -10 -8 -8 --------- Run | Yrd Mat Min Sub Rec Scr Machines Accessed 21 | . 4 . . 9 8 Terminals 6 | . 2 . . 4 . Fabricators . | . . . . . . Repair Stations . | . . . . . . Recycling Units 6 | . 2 . . 4 . Scanalyzers . | . . . . . . Garrison Access . | . . . . . . Total Hacks 50 | . 6 . . 16 28 Successful 45 | . 5 . . 12 28 Failed 5 | . 1 . . 4 . Catastrophic 1 | . . . . 1 . Database Lockouts . | . . . . . . Manual 7 | . 5 . . 2 . Terminals 9 | . 3 . . 6 . Fabricators . | . . . . . . Repair Stations . | . . . . . . Recycling Units 8 | . 3 . . 5 . Scanalyzers . | . . . . . . Garrison Access . | . . . . . . Terminal Hacks 38 | . 2 . . 8 28 Record 33 | . 1 . . 5 27 Part Schematic 1 | . . . . 1 . Robot Analysis 1 | . . . . 1 . Open Door 1 | . . . . . 1 Branch Access Points 1 | . 1 . . . . Zone Layout 1 | . . . . 1 . Fabricator Hacks . | . . . . . . Repair Station Hacks . | . . . . . . Recycling Unit Hacks 2 | . . . . 2 . Report Inventory 2 | . . . . 2 . Scanalyzer . | . . . . . . Garrison Access Hacks . | . . . . . . Unauthorized Hacks 2 | . 2 . . . . Terminals . | . . . . . . Fabricators . | . . . . . . Repair Stations . | . . . . . . Recycling Units 2 | . 2 . . . . Tunnel 2 | . 2 . . . . Scanalyzers . | . . . . . . Garrison Access . | . . . . . . Data Cores Recovered . | . . . . . . Used . | . . . . . . Hacking Detections 4 | . 1 . . 3 . Full Trace Events . | . . . . . . Feedback Events . | . . . . . . Feedback Blocked . | . . . . . . Robot Schematics Acquired . | . . . . . . Robots Built . | . . . . . . Authchips . | . . . . . . Time . | . . . . . . Total Robot Build Rating . | . . . . . . Part Schematics Acquired 1 | . . . . 1 . Parts Built . | . . . . . . Authchips . | . . . . . . Time . | . . . . . . Total Part Build Rating . | . . . . . . Part Studies Acquired . | . . . . . . Parts Repaired . | . . . . . . Time . | . . . . . . Parts Recycled . | . . . . . . Recycled Matter . | . . . . . . Retrieved Matter . | . . . . . . Retrieved Components . | . . . . . . Parts Scanalyzed . | . . . . . . Part Schematics Acquired . | . . . . . . Parts Damaged . | . . . . . . Bothacking | -11 -10 -10 -10 -8 -8 ------------ Run | Yrd Mat Min Sub Rec Scr Used RIF Installer . | . . . . . . Robots Hacked . | . . . . . . Non-combat . | . . . . . . Combat . | . . . . . . Robot Hacks Applied . | . . . . . . Relay Couplers Released . | . . . . . . Fabnet Peak Effective % . | . . . . . . Robots Rewired . | . . . . . . Allies Hacked . | . . . . . . Hacks Repelled . | . . . . . . Allies | -11 -10 -10 -10 -8 -8 -------- Run | Yrd Mat Min Sub Rec Scr Total Allies . | . . . . . . Largest Group . | . . . . . . Highest-Rated Group . | . . . . . . Highest-Rated Ally . | . . . . . . Total Orders . | . . . . . . Ally Attacks . | . . . . . . Total Damage . | . . . . . . Kills . | . . . . . . Allies Corrupted . | . . . . . . Allies Melted 1 | . . . . . 1 Intel | -11 -10 -10 -10 -8 -8 ------- Run | Yrd Mat Min Sub Rec Scr Active Infowar (turns) 3253 | . 145 384 547 1015 1162 ECM 3253 | . 145 384 547 1015 1162 Robot Analysis Total 1 | . . . . 1 . Derelict Logs Recovered 1 | . . 1 . . . Drone Launches . | . . . . . . Drone Recoveries . | . . . . . . Exploration | -11 -10 -10 -10 -8 -8 ------------- Run | Yrd Mat Min Sub Rec Scr Turns Passed 4248 | 113 188 384 554 1047 1962 Spaces Moved 3590 | 82 184 240 346 641 2097 Core 84 | 47 . . 10 27 . Treads 453 | . . . . 453 . Legs 2283 | . . 111 193 161 1818 Wheels 491 | 35 184 129 143 . . Hover . | . . . . . . Flight 279 | . . . . . 279 Fastest Speed 37 | 50 90 90 90 90 37 Average Speed 102 | 117 90 104 108 156 85 Slowest Speed 350 | 250 90 120 190 350 200 Overloaded Moves . | . . . . . . Propulsion Burnouts . | . . . . . . Robots Hopped . | . . . . . . Potential Cave-ins . | . . . . . . Cave-ins Triggered . | . . . . . . Exploration Rate (%) 50 | 5 44 43 21 99 91 Regions Visited 5 Branch Regions 4 Pre-discovered Areas 3 | . 2 1 . . . Known Exits Taken 1 | . 1 . . . . Unknown Exits Taken 4 | 1 . 1 1 1 . Scrap Searched 3 | . . . . . 3 Spaces Dug . | . . . . . . Terrain Destroyed 29 | . . . 29 . . Melee . | . . . . . . Projectile . | . . . . . . AOE 29 | . . . 29 . . Terrain Rammed . | . . . . . . Walls Destroyed . | . . . . . . Machines Disabled . | . . . . . . Actions | -11 -10 -10 -10 -8 -8 --------- Run | Yrd Mat Min Sub Rec Scr Total 4037 | 95 196 330 482 673 2261 Wait 310 | 5 5 63 95 7 135 Move 3585 | 81 183 239 345 640 2097 Hop . | . . . . . . Pick Up 24 | 3 1 1 4 7 8 Fast Attach 9 | 6 1 . . . 2 Attach 16 | . . 1 6 7 2 Detach 1 | . . . . 1 . Swap 10 | . . 2 4 1 3 Drop 16 | . . . 3 3 10 Fire 60 | . 5 23 25 7 . Melee 2 | . . . . . 2 Ram 2 | . 1 1 . . . Kick . | . . . . . . Crush . | . . . . . . Escape Stasis . | . . . . . . Rewire 2 | . . . . . 2 Trap . | . . . . . . Miscellaneous . | . . . . . . Route ------- -11/Scrapyard -10/Materials -10/Mines (discovered 3 exits: [*Mat x2] / [*Sub]) -10/Subcaves -8/Recycling (discovered 2 exits: [*Fac] / *Scr) -8/Scraptown (discovered 2 exits: [*Fac x2]) History --------- Turn | Location | Event 19 | -11/Scrapyard | Discovered new exit (range 16) 114 | -11/Scrapyard | Entered Materials 236 | -10/Materials | Identified exit to Mines 302 | -10/Materials | Entered Mines 310 | -10/Mines | Build established: Mutant 418 | -10/Mines | Discovered new exit (range 5) 562 | -10/Mines | Learned location of Storage (-8) 614 | -10/Mines | Discovered new exit (range 6) 670 | -10/Mines | Discovered new exit (range 6) 686 | -10/Mines | Entered Subcaves 687 | -10/Subcaves | Approached by a straggling Scientist 854 | -10/Subcaves | Shifting Twisted Machinery released Mak. Kinetic Plating 1159 | -10/Subcaves | Shifting Twisted Machinery released Sub. Optics 1211 | -10/Subcaves | Discovered new exit (range 9) 1216 | -10/Subcaves | Core integrity fell below 50% 1240 | -10/Subcaves | Entered Recycling 1254 | -8/Recycling | Lost 3 parts (2n1u) 1917 | -8/Recycling | Scanned before Scraplab entrance 1965 | -8/Recycling | Discovered new exit (range 15) 2276 | -8/Recycling | Entered Scraplab 2285 | -8/Recycling | Discovered new exit (range 3) 2287 | -8/Recycling | Entered Scraptown 2323 | -8/Scraptown | Heard Great Nut preacher, LISTEN AND RECITE! 2487 | -8/Scraptown | Visited UFD Registry 2487 | -8/Scraptown | Registered with UFD as "Matrixsplitter" 2499 | -8/Scraptown | Visited Shadow of the Wyrm 2609 | -8/Scraptown | Visited Junk Repository 2647 | -8/Scraptown | Visited Scrapoid Research Area 2665 | -8/Scraptown | Visited Red Mages 2724 | -8/Scraptown | Discovered new exit (range 11) 2977 | -8/Scraptown | Visited IN-MT5's Study 3025 | -8/Scraptown | Visited Cyclists 3034 | -8/Scraptown | Entered Cyclist Reading Room 3058 | -8/Scraptown | Visited Fellowship of the Rings 3098 | -8/Scraptown | Found Relay Coupler [Proto] 3324 | -8/Scraptown | Visited Junk Cannon Lab 3373 | -8/Scraptown | Visited LU-1G1's Boring Crew 3430 | -8/Scraptown | Visited Junk Repository 3496 | -8/Scraptown | Visited Observation Area 3525 | -8/Scraptown | Visited Scrap Suit Storage 3528 | -8/Scraptown | Found Scrap Suit 3832 | -8/Scraptown | Build established: Scrapper 3879 | -8/Scraptown | Visited Abandonware Association 3897 | -8/Scraptown | Learned abandonware demo "SHUTEYE.EXE" 3897 | -8/Scraptown | Learned abandonware demo "TRNCOAT.EXE" 3919 | -8/Scraptown | Visited Modified Component R&D 3973 | -8/Scraptown | Visited Infowarlord's Domain 3999 | -8/Scraptown | Visited Curators Association 4049 | -8/Scraptown | Visited Sword Containment 4061 | -8/Scraptown | Found Prototype Slashing Weapon 4061 | -8/Scraptown | Identified Companion Sword 4143 | -8/Scraptown | Met Optimus 4143 | -8/Scraptown | Accepted into 0bPrime 4233 | -8/Scraptown | Civil war broke out across Scraptown 4239 | -8/Scraptown | Discovered new exit (range 8) 4246 | -8/Scraptown | Core integrity fell below 20% 4249 | -8/Scraptown | Destroyed by JR-RNB(j) with Overtuned Pulse Rifle Last Messages --------------- 04237_ Slug penetrates 2I-KWQ(j). 04237_ 2I-KWQ(j) destroyed. 04239_ EXIT=FOUND 04239_ OD-NPA(g) destroyed. 04240_ Bolt penetrates Wall. 04241_ HY-P63(j) cannibalizes Ion Engine to repair Lgt. Deuterium Engine. 04242_ KS-2WA(E) destroyed. 04242_ HY-P63(j) destroyed. 04244_ X8-T65(E) destroyed. 04244_ Critical hit (Burn: +50). 04245_ Penetrated by Bolt. 04245_ Bolt penetrates D1-EPI(j). 04245_ Acquired 70 matter. 04245_ VSS Leg destroyed. 04246_ 0S-EB1(j) destroyed. 04247_ TU-7RZ(E) destroyed. 04248_ Penetrated by Bolt. 04249_ BF-0X5(E): "It's not too late to join us in victory!" Map ----- +----------------------------------------------------+ | | | | | | | | | | | | | | | | | | | | | ?????????????????????????????????????????????????? | | ?????????????????????????????????????????????????? | | ?????????????????????????????????????????????????? | | ?????????????????????????????????????????????????? | | ?????????????????????????????????????????????????? | | ?????????????????????????????????????????????????? | | ?????????????????????????????????????????????????? | | ?????????????????????????????????????????????????? | | ?????????????????????????????????????????????????? | | ?????????????????????????????????????????????????? | | ?????????????????????????????????????????????????? | | ???????????????????????#####?????????????????????? | | ???????????????????????#"""#?????????????????????? | | ??????????????####?????#"!"#?????????????????????? | | ?????????????## ##??###jjj#?????????????????????? | | ???" ##!!"#### ####=%j@h##????????????????????? | | ?? !!E !![=!=%#????????????????????? | | ??? =%!% *=%!![;#???????????????????? | | ???????####### !########!=##???????????????????? | | ?????????????## "#?###########??????????????????? | | #?????????????# #""""""""""""#??????????????????? | | #?????????????# #"?" #"""""""#??????????????????? | | ####??????????# # ??# " "#??????????????????? | | "#??#######?# ####+# [ ="#??????????????????? | | ""#???# #?# #""" "#??????????????????? | | "*#???# #?# #"= "#??????????????????? | | ""##??# #?# #"" """""#??????????????????? | | "#??# #?# #" "#####??????????????????? | | ""##??# ] #?# #X """""#??????????????????? | | "=#???# #?# ## [ #??????????????????? | | ""##??# #?# #" #??????????????????? | | "#??# #?# #" #??????????????????? | | ####??### ###?# "# ###########??????????????????? | | ######### ##### ## #############????????????????? | | """"""""" """"" ["" "## "#????????????????? | | !% "## ""#????????????????? | | "## """" "#????????????????? | | "## "### "#????????????????? | | "## "#X ""#????????????????? | | "### "#????????????????? | +----------------------------------------------------+ Best States ------------- Heat Dissipation 25 Energy Generation 14 Energy Capacity 250 Matter Stores 300 Matter Capacity 300 Sight Range 16 Terrain Scan Density 10 ECM Strength 1 Armor Coverage 100 Resistance: KI 10 Evasion (%) 62 Recoil Reduction 1 Item Schematics ----------------- Imp. Melee Analysis Suite | -8/Recycling | Hacked Robot Schematics ------------------ None Fabricated ------------ Nothing Repaired ---------- Nothing Studied --------- None Alien Tech Used ----------------- None Achievements -------------- Sprinter Challenges ------------ None Game ------ Seed XenonSuperchargedInverter Manual? 0 Play Time 00:49:30 Cumulative 22.5 hours Start 2025.12.21 @ 20:02:09 End 2025.12.21 @ 22:59:22 Sessions 3 Manual Loads 0 Difficulty Rogue Special Mode None Game No. 43 Rogue 43 Adventurer 0 Explorer 0 Win Type - Total 0 Types 0/0/0/0/0/0/0/0/0/0 Lore% 30 Gallery% 23 Achievement% 17 Wizard Run 0 Options --------- Layout 1 ASCII 0 Keyboard 0 Movement Numpad Keybinds 0 Fullscreen 0 Font 20/SmallcapsGlow Map View 50x35 Zoom Use 0% Tactical HUD 1 Map Filters NONE Filters NONE Steam 1 RUN: 33534bbc-c4c0-48f9-9afa-784f475d955d